bitfinex-derivatives/quotes_SOLF0:USTF0_20250706
["timestamp","ask_amount","ask_price","bid_price","bid_amount"]
[1751824646257,10.89753948,152.41,152.38,9.02919114]
[1751824646458,6.5603,152.41,152.38,9.02919114]
[1751824646758,9.02819114,152.41,152.38,9.02919114]
[1751824647754,6.5603,152.41,152.38,9.02919114]
[1751824651064,9.02789114,152.42,152.39,6.5611]
[1751824651262,4.34961712,152.41,152.39,6.5611]
[1751824651461,9.02789114,152.42,152.39,6.5611]
[1751824651663,4.34972324,152.41,152.39,6.5611]
[1751824651863,9.02789114,152.42,152.39,6.5611]
[1751824652062,10.90961883,152.41,152.38,9.02929114]
[1751824652265,6.5603,152.41,152.38,9.02929114]
[1751824652763,6.5603,152.41,152.39,6.5611]
[1751824657270,9.02779114,152.42,152.39,6.5611]
[1751824657470,4.33945974,152.41,152.39,6.5611]
[1751824657671,9.02779114,152.42,152.39,6.5611]
[1751824657872,4.33945974,152.41,152.39,6.5611]
[1751824658068,9.02779114,152.42,152.39,6.5611]
[1751824658266,4.33937597,152.41,152.39,9.02899114]
[1751824658467,2.46789114,152.44,152.4,2.46789114]
[1751824658769,4.33974676,152.43,152.4,2.46789114]
[1751824658969,2.46789114,152.44,152.4,2.46789114]
[1751824659169,4.33965874,152.43,152.41,6.5602]
[1751824659370,9.02719114,152.44,152.41,6.5602]
[1751824659568,4.33898515,152.43,152.41,6.5602]
[1751824659771,44.66,152.45,152.4,2.46789114]
[1751824659772,51.2187,152.45,152.42,6.5598]
[1751824659967,44.66,152.45,152.4,2.46789114]
[1751824660167,9.02629114,152.46,152.42,6.5594]
[1751824660368,4.33773226,152.45,152.42,6.5594]
[1751824660567,2.46789114,152.46,152.42,6.5594]
[1751824660869,4.34823909,152.45,152.42,6.5594]
[1751824661060,6.5586,152.45,152.42,6.5594]
[1751824663273,9.02619114,152.46,152.43,6.5594]
[1751824664374,9.02619114,152.46,152.42,6.5597]
[1751824664977,4.34531917,152.45,152.42,6.5597]
[1751824665171,9.02619114,152.46,152.42,6.5597]
[1751824665475,4.34488993,152.45,152.42,6.5597]
[1751824665677,9.02619114,152.46,152.42,6.5597]
[1751824665875,6.5586,152.45,152.42,6.5597]
[1751824668175,2.46789114,152.45,152.41,6.5601]
[1751824668379,2.46789114,152.45,152.4,2.46789114]
[1751824668572,2.46789114,152.41,152.37,11.23959114]
[1751824668773,2.46789114,152.4,152.37,2.46789114]
[1751824669175,9.02889114,152.4,152.37,9.02989114]
[1751824669477,6.561,152.4,152.37,9.02989114]
[1751824670176,6.561,152.4,152.38,2.46789114]
[1751824670775,8.28088201,152.46,152.4,2.46789114]
[1751824670974,2.46789114,152.47,152.4,2.46789114]
[1751824671176,4.41818035,152.46,152.4,2.46789114]
[1751824671377,2.46789114,152.47,152.42,6.5596]
[1751824671576,4.41751475,152.46,152.42,6.5596]
[1751824671778,2.46789114,152.47,152.42,6.5596]
[1751824671977,4.41769574,152.46,152.42,6.5596]
[1751824672177,2.46789114,152.47,152.42,6.5596]
[1751824672377,6.5588,152.45,152.41,6.5601]
[1751824673082,6.5588,152.45,152.42,6.5598]
[1751824681583,44.62,152.49,152.4,48.45366431]
[1751824681784,44.62,152.49,152.41,2.3586]
[1751824681785,4.42693638,152.48,152.41,2.3586]
[1751824681980,4.42693638,152.47,152.41,2.3586]
[1751824682180,44.62,152.49,152.41,2.3586]
[1751824682380,4.42567136,152.48,152.41,2.3586]
[1751824682686,10.98337136,152.47,152.44,6.5588]
[1751824682885,6.5577,152.47,152.44,6.5588]
[1751824694997,6.5577,152.47,152.45,6.5585]
[1751824695190,6.5577,152.47,152.41,2.3586]
[1751824695895,6.5577,152.47,152.44,6.5587]
[1751824698196,6.5578,152.47,152.44,6.5587]
[1751824702299,4.44765268,152.46,152.44,6.5587]
[1751824702599,6.5578,152.47,152.44,6.5587]
[1751824702806,4.44765268,152.46,152.44,6.5587]
[1751824702994,6.5578,152.47,152.44,6.5587]
[1751824703289,4.44765268,152.46,152.44,6.5587]
[1751824703488,6.5578,152.47,152.44,6.5587]
[1751824703691,4.44832978,152.46,152.44,6.5587]
[1751824703895,6.5578,152.47,152.44,6.5587]
[1751824704089,4.44832979,152.46,152.44,6.5587]
[1751824704292,6.5578,152.47,152.44,6.5587]
[1751824704492,4.44869382,152.46,152.44,6.5587]
[1751824704696,6.5578,152.47,152.44,6.5587]
[1751824704897,4.44869382,152.46,152.44,6.5587]
[1751824705104,6.5578,152.47,152.44,6.5587]
[1751824705297,4.44880281,152.46,152.44,6.5587]
[1751824705589,6.5578,152.47,152.44,6.5587]
[1751824705802,4.44903037,152.46,152.44,6.5587]
[1751824706002,6.5578,152.47,152.44,6.5587]
[1751824706294,4.44903363,152.46,152.44,6.5587]
[1751824706501,6.5578,152.47,152.44,6.5587]
[1751824706702,4.44985786,152.46,152.44,6.5587]
[1751824706901,6.5578,152.47,152.44,6.5587]
[1751824707100,4.45123581,152.46,152.44,6.5587]
[1751824707300,6.5578,152.47,152.44,6.5587]
[1751824707596,4.42979321,152.46,152.44,6.5587]
[1751824707799,6.5578,152.47,152.44,6.5587]
[1751824708004,4.42979321,152.46,152.44,6.5587]
[1751824708191,6.5578,152.47,152.44,6.5587]
[1751824708390,4.42985116,152.46,152.44,6.5587]
[1751824708595,6.5578,152.47,152.44,6.5587]
[1751824708795,6.89553431,152.46,152.41,2.3586]
[1751824708997,2.46568315,152.44,152.4,47.06568315]
[1751824709197,2.46568315,152.43,152.4,47.06568315]
[1751824709393,2.46568315,152.43,152.4,44.6]
[1751824709702,2.46568315,152.41,152.38,2.46568315]
[1751824710001,2.46568315,152.42,152.38,2.46568315]
[1751824710203,4.43027279,152.41,152.38,2.46568315]
[1751824710402,2.46568315,152.42,152.38,2.46568315]
[1751824710702,10.98928103,152.41,152.38,9.02708315]
[1751824710901,6.5605,152.41,152.38,9.02708315]
[1751824711199,9.02568315,152.42,152.39,6.5611]
[1751824712195,9.02568315,152.42,152.39,9.02678315]
[1751824714303,6.5604,152.41,152.39,2.46568315]
[1751824714703,2.46568315,152.42,152.39,2.46568315]
[1751824714704,6.56,152.42,152.39,2.46568315]
[1751824715404,6.5603,152.41,152.39,2.46568315]
[1751824715604,6.5603,152.41,152.38,9.02718315]
[1751824716605,9.02568315,152.42,152.39,6.561]
[1751824719011,9.02568315,152.42,152.39,9.02668315]
[1751824722010,6.56,152.42,152.39,9.02668315]
[1751824726511,6.5604,152.41,152.39,2.46568315]
[1751824729514,6.5604,152.41,152.38,6.5615]
[1751824729712,6.5604,152.41,152.39,2.46568315]
[1751824731723,6.5607,152.4,152.38,2.46568315]
[1751824731917,2.46568315,152.4,152.37,2.46568315]
[1751824732120,2.46568315,152.4,152.36,2.46568315]
[1751824732618,6.5614,152.39,152.36,2.46568315]
[1751824733116,6.5614,152.39,152.36,9.02808315]
[1751824734319,9.02708315,152.39,152.36,2.46568315]
[1751824737619,9.02708315,152.39,152.36,9.02808315]
[1751824739224,6.5616,152.38,152.35,9.02848315]
[1751824750735,44.58,152.44,152.37,2.46568315]
[1751824750933,2.46568315,152.41,152.37,2.46568315]
[1751824751136,4.33792894,152.4,152.37,2.46568315]
[1751824751334,6.5609,152.4,152.37,2.46568315]
[1751824751735,9.02658315,152.4,152.37,2.46568315]
[1751824752745,9.02658315,152.4,152.37,9.02758315]
[1751824753636,9.02608315,152.41,152.38,6.5615]
[1751824753839,9.02608315,152.41,152.38,9.02718315]
[1751824754541,9.02568315,152.42,152.38,9.02718315]
[1751824754736,4.3436541,152.41,152.38,9.02718315]
[1751824754931,9.02568315,152.42,152.38,9.02718315]
[1751824755137,4.34361974,152.41,152.38,9.02718315]
[1751824755341,9.02568315,152.42,152.38,9.02718315]
[1751824755538,4.34327767,152.41,152.38,9.02718315]
[1751824755744,9.02568315,152.42,152.38,9.02718315]
[1751824755944,4.34327004,152.41,152.38,9.02718315]
[1751824756143,9.02568315,152.42,152.39,6.5611]
[1751824756443,4.34317687,152.41,152.39,2.46568315]
[1751824756750,47.04568315,152.44,152.4,2.46568315]
[1751824757044,4.34363501,152.43,152.4,2.46568315]
[1751824757346,47.04568315,152.44,152.4,2.46568315]
[1751824757535,4.3434838,152.43,152.41,6.5603]
[1751824757740,53.60488315,152.44,152.41,6.5603]
[1751824758033,4.34339667,152.43,152.41,6.5603]
[1751824758237,53.60488315,152.44,152.41,6.5603]
[1751824758643,47.04568315,152.44,152.41,6.5603]
[1751824758844,44.58,152.44,152.41,6.5603]
[1751824759545,51.1391,152.44,152.41,6.5603]
[1751824760047,6.5591,152.44,152.41,6.5603]
[1751824760240,6.5591,152.44,152.41,9.02598315]
[1751824764049,6.5595,152.43,152.41,2.46568315]
[1751824766351,9.02478315,152.44,152.41,2.46568315]
[1751824768356,6.5591,152.44,152.41,2.46568315]
[1751824768749,6.5591,152.44,152.41,9.02568315]
[1751824770254,2.46568315,152.45,152.38,2.2008]
[1751824770255,6.5587,152.45,152.42,9.02548315]
[1751824770656,4.40693524,152.44,152.42,9.02548315]
[1751824770850,9.02398315,152.46,152.43,2.46568315]
[1751824771050,4.40687208,152.45,152.43,2.46568315]
[1751824771356,2.46568315,152.46,152.43,2.46568315]
[1751824771551,4.40634802,152.45,152.43,2.46568315]
[1751824771753,2.46568315,152.46,152.43,2.46568315]
[1751824771954,4.40661541,152.45,152.43,2.46568315]
[1751824772154,2.46568315,152.46,152.43,2.46568315]
[1751824772658,6.5586,152.45,152.43,2.46568315]
[1751824777760,6.5586,152.45,152.42,6.5598]
[1751824777958,6.5586,152.45,152.42,9.02548315]
[1751824779858,6.5586,152.45,152.43,2.46568315]
[1751824780459,9.02398315,152.46,152.43,2.46568315]
[1751824781660,2.46568315,152.46,152.43,9.02498315]
[1751824781861,9.02358315,152.47,152.43,9.02498315]
[1751824782060,4.42561163,152.46,152.43,9.02498315]
[1751824782358,9.02358315,152.47,152.43,9.02498315]
[1751824782559,4.42546383,152.46,152.43,9.02498315]
[1751824782758,9.02358315,152.47,152.43,9.02498315]
[1751824785061,6.5582,152.46,152.43,9.02498315]
[1751824787460,6.5582,152.46,152.43,6.5593]
[1751824787664,2.46568315,152.46,152.42,2.46568315]
[1751824788257,9.02408315,152.46,152.43,6.5593]
[1751824788760,2.46568315,152.46,152.42,2.46568315]
[1751824789666,6.5586,152.45,152.42,9.02528315]
[1751824794264,6.5586,152.45,152.42,6.5596]
[1751824794459,9.02428315,152.45,152.42,2.46568315]
[1751824796271,4.4213814,152.44,152.42,2.46568315]
[1751824796473,9.02428315,152.45,152.42,2.46568315]
[1751824796768,6.5586,152.45,152.42,2.46568315]
[1751824797264,4.41236441,152.44,152.42,2.46568315]
[1751824797471,6.5586,152.45,152.42,2.46568315]
[1751824797664,4.41260405,152.44,152.42,2.46568315]
[1751824797866,6.5586,152.45,152.42,2.46568315]
[1751824798066,4.41260405,152.44,152.42,2.46568315]
[1751824798263,6.5586,152.45,152.42,2.46568315]
[1751824798465,4.41409803,152.44,152.42,9.02548315]
[1751824798670,6.5586,152.45,152.42,9.02548315]
[1751824798871,4.41409803,152.44,152.42,9.02548315]
[1751824799067,6.5586,152.45,152.42,9.02548315]
[1751824799370,4.41409805,152.44,152.42,9.02548315]
[1751824799571,6.5586,152.45,152.42,9.02548315]
[1751824799773,4.41526886,152.44,152.42,9.02548315]
[1751824799967,6.5586,152.45,152.42,9.02548315]
[1751824800175,4.40450777,152.44,152.42,9.02548315]
[1751824800371,6.5586,152.45,152.42,9.02548315]
[1751824800574,4.4056109,152.44,152.42,9.02548315]
[1751824800872,6.5586,152.45,152.42,9.02548315]
[1751824801077,4.4056109,152.44,152.43,9.02508315]
[1751824801273,4.4056109,152.44,152.43,6.5594]
[1751824801575,4.4056109,152.44,152.43,9.02508315]
[1751824802166,6.5583,152.46,152.43,9.02508315]
[1751824802371,4.40698904,152.45,152.43,9.02508315]
[1751824802572,4.40698904,152.44,152.43,9.02508315]
[1751824803280,51.38048315,152.49,152.43,2.46568315]
[1751824803480,9.02408315,152.46,152.42,2.46568315]
[1751824803771,4.40658231,152.45,152.43,9.02488315]
[1751824803973,6.5584,152.46,152.43,2.46568315]
[1751824804173,4.40670616,152.45,152.43,2.46568315]
[1751824804384,6.5584,152.46,152.43,2.46568315]
[1751824804670,4.40687716,152.45,152.43,2.46568315]
[1751824804875,4.40687716,152.44,152.43,9.02478315]
[1751824805381,4.40687716,152.44,152.43,9.02542133]
[1751824806576,4.40687716,152.44,152.43,6.5591]
[1751824806880,4.40687716,152.44,152.43,9.02542133]
[1751824807680,9.1846001,152.51,152.43,9.02632133]
[1751824807876,8.93524392,152.5,152.48,2.464694]
[1751824808179,8.93524392,152.49,152.48,2.464694]
[1751824808568,8.93524392,152.49,152.47,9.022094]
[1751824808773,4.42722137,152.48,152.47,9.022094]
[1751824809073,4.32651048,152.48,152.47,9.022094]
[1751824809977,6.5552,152.53,152.5,6.5562]
[1751824810178,4.20313466,152.52,152.51,2.464694]
[1751824810378,6.5552,152.53,152.51,2.464694]
[1751824810578,6.5552,152.53,152.5,9.020894]
[1751824812172,6.5552,152.53,152.5,2.464694]
[1751824812674,6.5556,152.52,152.5,2.464694]
[1751824812880,2.464694,152.51,152.48,2.464694]
[1751824813181,2.464694,152.5,152.47,46.984694]
[1751824813681,9.020794,152.51,152.48,2.464694]
[1751824814879,9.020394,152.52,152.49,2.464694]
[1751824815082,2.464694,152.55,152.51,2.464694]
[1751824815482,6.5548,152.54,152.51,2.464694]
[1751824815778,9.019494,152.54,152.51,2.464694]
[1751824816480,9.019494,152.54,152.47,44.52]
[1751824816481,2.464694,152.52,152.47,46.984694]
[1751824816678,44.5,152.56,152.47,46.984694]
[1751824816679,2.464694,152.51,152.47,46.984694]
[1751824817280,6.5564,152.5,152.47,46.984694]
[1751824818982,6.5564,152.5,152.48,2.464694]
[1751824819678,6.5564,152.5,152.47,2.464694]
[1751824820480,6.5564,152.5,152.47,9.022394]
[1751824821182,6.5564,152.5,152.48,2.464694]
[1751824821380,2.464694,152.49,152.45,2.464694]
[1751824821572,2.464694,152.48,152.44,4.753294]
[1751824821779,9.022194,152.48,152.44,11.311994]
[1751824822773,6.5578,152.47,152.44,4.753294]
[1751824822978,2.464694,152.47,152.43,46.964694]
[1751824824084,6.5584,152.46,152.43,46.964694]
[1751824826288,6.559,152.44,152.43,44.5]
[1751824826791,6.559,152.44,152.42,2.464694]
[1751824826983,6.559,152.44,152.41,6.5602]
[1751824826984,6.559,152.44,152.41,2.464694]
[1751824827284,2.464694,152.43,152.4,2.464694]
[1751824827489,2.464694,152.43,152.39,46.7264]
[1751824827490,2.464694,152.42,152.39,44.5]
[1751824827789,9.024794,152.42,152.39,44.5]
[1751824827983,6.5601,152.42,152.39,46.964694]
[1751824829186,9.024394,152.43,152.39,53.525694]
[1751824829788,6.5592,152.44,152.41,2.464694]
[1751824829984,6.5592,152.44,152.42,2.464694]
[1751824830185,9.023794,152.44,152.41,2.464694]
[1751824830689,6.5591,152.44,152.41,2.464694]
[1751824830892,6.5591,152.44,152.4,3.85455757]
[1751824831493,6.5591,152.44,152.4,10.41515757]
[1751824833995,3.85455757,152.45,152.39,51.061]
[1751824834193,3.85455757,152.45,152.39,44.5]
[1751824834390,4.2665619,152.44,152.39,44.5]
[1751824834586,6.5601,152.42,152.39,44.5]
[1751824837997,44.52,152.46,152.39,44.5]
[1751824837998,3.85455757,152.43,152.39,44.5]
[1751824838400,3.85455757,152.43,152.37,10.41635757]
[1751824840795,6.5606,152.41,152.37,10.41635757]
[1751824841599,6.5606,152.41,152.38,6.5615]
[1751824843504,6.56,152.42,152.39,6.5611]
[1751824844899,6.56,152.42,152.39,10.41565757]
[1751824846710,6.5597,152.43,152.4,6.5607]
[1751824848805,6.5591,152.44,152.41,6.5602]
[1751824854811,6.5591,152.44,152.42,2.4667939]
[1751824855913,6.5587,152.45,152.43,2.4667939]
[1751824857517,6.559,152.44,152.42,2.4667939]
[1751824860017,6.559,152.44,152.41,6.5601]
[1751824860208,6.559,152.44,152.42,2.4667939]
[1751824863522,6.559,152.44,152.41,2.4667939]
[1751824864416,2.4667939,152.42,152.38,44.58]
[1751824864621,2.4667939,152.4,152.37,2.4667939]
[1751824864822,2.4667939,152.4,152.37,9.0284939]
[1751824865122,9.0274939,152.4,152.37,9.0284939]
[1751824865622,6.5607,152.4,152.37,9.0284939]
[1751824866822,6.5607,152.4,152.37,6.5617]
[1751824869224,6.5605,152.41,152.38,6.5615]
[1751824871827,6.56,152.42,152.39,6.5611]
[1751824872026,6.56,152.42,152.38,3.85632693]
[1751824872429,6.56,152.42,152.39,6.5608]
[1751824879633,6.5595,152.43,152.4,6.5606]
[1751824879833,4.29574859,152.42,152.4,6.5606]
[1751824880033,6.5595,152.43,152.4,6.5606]
[1751824880236,4.29574859,152.42,152.4,6.5606]
[1751824880431,6.5595,152.43,152.4,6.5606]
[1751824880631,4.29648234,152.42,152.4,6.5606]
[1751824880827,6.5595,152.43,152.4,6.5606]
[1751824881032,6.5591,152.44,152.38,3.85632693]
[1751824881239,48.37632693,152.46,152.4,3.85632693]
[1751824881536,4.29693444,152.45,152.42,6.5595]
[1751824881741,4.29693444,152.44,152.42,6.5595]
[1751824882036,6.5588,152.45,152.42,6.5595]
[1751824886341,6.5588,152.45,152.41,6.5601]
[1751824888843,6.5588,152.45,152.42,2.46665164]
[1751824889237,44.52,152.46,152.42,2.46665164]
[1751824889542,46.98665164,152.46,152.42,2.46665164]
[1751824890537,6.5586,152.45,152.42,9.02635164]
[1751824891737,46.817,152.49,152.44,2.46665164]
[1751824891942,4.32836565,152.48,152.45,2.46665164]
[1751824892144,4.32836565,152.47,152.45,2.46665164]
[1751824892334,6.5575,152.48,152.45,9.02505164]
[1751824892540,4.32592044,152.47,152.45,9.02505164]
[1751824892740,6.5575,152.48,152.45,9.02505164]
[1751824892946,4.32558664,152.47,152.46,2.46665164]
[1751824893145,6.5575,152.48,152.46,2.46665164]
[1751824893746,44.54,152.49,152.46,9.02465164]
[1751824894045,44.54,152.49,152.41,2.1432]
[1751824894046,15.05066088,152.48,152.44,2.46665164]
[1751824894242,2.46665164,152.45,152.4,2.2475]
[1751824894435,2.46665164,152.42,152.39,2.46665164]
[1751824894640,11.40627997,152.48,152.36,44.54]
[1751824894641,2.46665164,152.4,152.36,44.54]
[1751824894840,3.85729399,152.41,152.36,44.54]
[1751824895439,6.5606,152.41,152.37,6.5617]
[1751824895641,8.26599399,152.43,152.36,44.54]
[1751824895947,9.21384164,152.42,152.36,51.1021]
[1751824896246,9.21384164,152.41,152.36,51.1021]
[1751824896448,8.26599399,152.43,152.36,44.54]
[1751824896744,6.5607,152.41,152.37,6.562]
[1751824897745,8.26599399,152.43,152.37,6.562]
[1751824897942,9.16069096,152.42,152.36,51.1024]
[1751824898144,9.16069096,152.41,152.36,51.1024]
[1751824898340,4.35391786,152.4,152.36,51.1024]
[1751824898545,6.5603,152.41,152.36,51.1024]
[1751824898746,4.35300311,152.4,152.36,51.1024]
[1751824899048,6.5608,152.4,152.36,51.1024]
[1751824899349,8.26599399,152.43,152.37,6.5618]
[1751824899543,6.5604,152.41,152.36,48.39729399]
[1751824900749,6.5607,152.4,152.37,6.5618]
[1751824902445,6.5606,152.41,152.37,6.5618]
[1751824905150,6.56,152.42,152.36,48.39729399]
[1751824905450,3.85729399,152.43,152.36,48.39729399]
[1751824905650,9.07942259,152.42,152.36,48.39729399]
[1751824905847,3.85729399,152.43,152.36,48.39729399]
[1751824906047,9.07942259,152.42,152.36,48.39729399]
[1751824906248,3.85729399,152.43,152.36,48.39729399]
[1751824906448,9.07958418,152.42,152.36,48.39729399]
[1751824906653,6.5603,152.41,152.38,6.5612]
[1751824908656,6.5601,152.42,152.36,48.39729399]
[1751824909550,44.54,152.44,152.38,3.85729399]
[1751824909755,3.85729399,152.47,152.4,3.85729399]
[1751824909955,9.08536216,152.46,152.4,3.85729399]
[1751824910157,6.5592,152.44,152.41,6.5601]
[1751824910758,6.5596,152.43,152.4,10.41789399]
[1751824910954,3.85729399,152.45,152.38,3.85729399]
[1751824911651,6.5601,152.42,152.39,6.561]
[1751824912458,6.08729399,152.45,152.38,10.41869399]
[1751824914459,6.5602,152.42,152.38,10.41869399]
[1751824915856,6.5605,152.41,152.38,3.85729399]
[1751824917561,6.5605,152.41,152.38,6.5615]
[1751824918053,3.85729399,152.43,152.36,44.54]
[1751824918258,3.85729399,152.41,152.36,44.54]
[1751824919658,6.5614,152.39,152.36,51.1022]
[1751824922565,6.5608,152.4,152.37,6.562]
[1751824922763,3.85729399,152.42,152.37,6.562]
[1751824923569,6.5607,152.4,152.37,6.562]
[1751824925865,6.5606,152.41,152.38,6.5615]
[1751824926568,6.5606,152.41,152.37,6.5619]
[1751824929472,6.561,152.4,152.37,6.5619]
[1751824930573,6.5613,152.39,152.36,51.1023]
[1751824931373,6.5609,152.4,152.36,51.1023]
[1751824931976,6.5609,152.4,152.37,6.5619]
[1751824933878,6.5609,152.4,152.36,51.1023]
[1751824935980,6.5612,152.39,152.36,51.1023]
[1751824937680,6.5612,152.39,152.36,44.54]
[1751824938477,6.5612,152.39,152.36,51.1022]
[1751824939784,6.5612,152.39,152.36,6.5622]
[1751824940785,6.5612,152.39,152.36,9.03058045]
[1751824941286,9.02928045,152.4,152.37,6.562]
[1751824941480,9.02928045,152.4,152.37,9.03038045]
[1751824941788,6.5609,152.4,152.37,9.03038045]
[1751824942887,6.5613,152.39,152.36,9.03048045]
[1751824943488,9.02928045,152.4,152.36,9.03048045]
[1751824944683,44.58,152.43,152.39,2.46838045]
[1751824944986,19.47834285,152.42,152.38,2.46838045]
[1751824945181,4.1976437,152.41,152.35,2.1432]
[1751824945389,6.66615336,152.4,152.36,2.46838045]
[1751824945690,2.46838045,152.4,152.36,2.46838045]
[1751824946590,6.5614,152.39,152.36,9.03068045]
[1751824946787,6.5614,152.39,152.34,1.14148886]
[1751824946987,6.5614,152.39,152.36,2.46838045]
[1751824947886,2.46838045,152.4,152.35,9.03108045]
[1751824948089,4.19800722,152.39,152.35,9.03108045]
[1751824948285,2.46838045,152.4,152.35,9.03108045]
[1751824948590,10.75928765,152.39,152.35,9.03108045]
[1751824948891,6.5614,152.39,152.35,9.03108045]
[1751824949890,9.02978045,152.39,152.35,9.03108045]
[1751824950796,9.02978045,152.39,152.36,6.5624]
[1751824953896,2.46838045,152.38,152.34,7.70438886]
[1751824954195,2.46838045,152.38,152.34,9.03128045]
[1751824954699,6.562,152.37,152.34,9.03128045]
[1751824956995,9.03038045,152.37,152.34,2.46838045]
[1751824958504,9.03038045,152.37,152.34,9.03158045]
[1751824958801,6.562,152.37,152.34,9.03158045]
[1751824959297,6.562,152.37,152.35,2.46838045]
[1751824959500,9.03028045,152.38,152.35,9.03118045]
[1751824959696,2.46838045,152.38,152.33,46.8293]
[1751824959897,2.46838045,152.38,152.35,2.46838045]
[1751824960500,6.562,152.37,152.35,2.46838045]
[1751824963205,6.562,152.37,152.34,9.03148045]
[1751824969307,9.03008045,152.38,152.34,9.03148045]
[1751824970803,9.03008045,152.38,152.35,6.5628]
[1751824976520,6.5617,152.38,152.35,6.5628]
[1751824976715,9.03008045,152.38,152.34,9.03148045]
[1751824980111,6.5617,152.38,152.35,2.46838045]
[1751824980410,6.5612,152.39,152.37,2.46838045]
[1751824980611,6.5612,152.39,152.36,6.5624]
[1751824980817,2.46838045,152.38,152.35,6.5628]
[1751824981413,9.03018045,152.38,152.35,6.5628]
[1751824982120,6.5618,152.38,152.35,6.5628]
[1751824983118,6.5618,152.38,152.35,9.03118045]
[1751824984113,6.5618,152.38,152.36,2.46838045]
[1751824985621,6.562,152.37,152.35,2.46838045]
[1751824987320,6.562,152.37,152.34,9.03148045]
[1751824988519,6.562,152.37,152.35,2.46838045]
[1751824990317,9.03008045,152.38,152.35,2.46838045]
[1751824990622,6.5617,152.38,152.35,9.03108045]
[1751825001728,6.5617,152.38,152.35,6.5627]
[1751825001928,6.5617,152.38,152.35,9.03108045]
[1751825006833,6.5617,152.38,152.35,2.46838045]
[1751825007730,9.03008045,152.38,152.35,2.46838045]
[1751825009834,6.562,152.37,152.34,6.5632]
[1751825010133,6.562,152.37,152.34,9.03158045]
[1751825011332,2.46838045,152.38,152.34,9.03158045]
[1751825011333,9.03008045,152.38,152.34,9.03158045]
[1751825012137,6.5617,152.38,152.35,6.5628]
[1751825012742,9.02968045,152.39,152.35,9.03118045]
[1751825013036,4.14503679,152.38,152.35,9.03118045]
[1751825013238,2.46838045,152.39,152.35,9.03118045]
[1751825013437,4.14558579,152.38,152.35,9.03118045]
[1751825013637,2.46838045,152.39,152.35,9.03118045]
[1751825013839,4.14558579,152.38,152.35,9.03118045]
[1751825014136,2.46838045,152.39,152.35,9.03118045]
[1751825014339,4.14592493,152.38,152.35,9.03118045]
[1751825014538,6.5617,152.38,152.35,9.03118045]
[1751825016242,9.03008045,152.38,152.34,9.03148045]
[1751825016739,4.15734239,152.37,152.34,9.03148045]
[1751825016942,9.03008045,152.38,152.34,9.03148045]
[1751825017139,4.1576748,152.37,152.34,9.03148045]
[1751825017335,4.1576748,152.37,152.34,2.46838045]
[1751825017336,6.5624,152.37,152.34,2.46838045]
[1751825021143,6.5617,152.38,152.34,6.5632]
[1751825021342,4.15602819,152.37,152.35,2.46838045]
[1751825021544,2.46838045,152.38,152.35,2.46838045]
[1751825021842,4.15603117,152.37,152.35,2.46838045]
[1751825022142,6.5623,152.37,152.35,2.46838045]
[1751825022743,6.5623,152.37,152.34,2.46838045]
[1751825023739,2.46838045,152.37,152.32,1.14199455]
[1751825023942,2.46838045,152.37,152.31,46.6966]
[1751825023943,2.46838045,152.37,152.33,2.46838045]
[1751825024433,6.5627,152.36,152.33,2.46838045]
[1751825025345,6.563,152.35,152.32,6.5638]
[1751825025543,6.563,152.35,152.33,2.46838045]
[1751825027342,6.563,152.35,152.32,6.5638]
[1751825027647,6.563,152.35,152.33,2.46838045]
[1751825030647,9.03098045,152.36,152.33,9.03208045]
[1751825038954,9.03098045,152.36,152.33,2.46838045]
[1751825039350,6.563,152.35,152.33,2.46838045]
[1751825040155,44.52,152.39,152.33,9.03198045]
[1751825040357,2.46838045,152.37,152.34,2.46838045]
[1751825040756,2.46838045,152.37,152.33,2.46838045]
[1751825041056,6.60666787,152.36,152.31,47.00838045]
[1751825041254,2.46838045,152.36,152.32,2.46838045]
[1751825042153,46.8469,152.39,152.32,2.46838045]
[1751825042356,8.61975113,152.38,152.35,2.46838045]
[1751825042657,51.0814,152.39,152.36,2.46838045]
[1751825042856,51.0814,152.39,152.37,2.46838045]
[1751825043052,51.0814,152.39,152.36,2.46838045]
[1751825043560,51.0814,152.39,152.35,6.5625]
[1751825043757,51.0814,152.39,152.36,2.46838045]
[1751825044152,51.0814,152.39,152.36,9.03068045]